{"text_format":"1","workbook":"xlsx","n_sheets":8,"sheets":["BML","Adatok_BML","BML kitöltési útmutatója","Mi változott","SAL","RAL","BEF","BEF kitöltési útmutatója"],"not_rendered":{"charts":0,"images":0,"macros":1,"external_links":1,"defined_names":13,"comments":1,"pivot_tables":0},"unopened":[],"bounds":{"document_bytes":16777216,"sheet_cells":100000,"rows_first":2000,"rows_last":500,"rows_between":2000,"halvings":0,"cell_chars":16384,"cell_head_chars":4096},"cells_cut":0,"cells_raw":0,"read":"whole","date_system":"1900"}

{"sheet":"BML","index":0,"n_rows":83,"n_cols":15,"rows_kept":83,"cut":false,"hidden":false,"merged":[[82,0,82,10],[37,2,37,10],[33,3,33,4],[34,3,34,4],[35,3,35,4],[36,3,36,4],[33,7,33,8],[33,9,33,10],[35,7,35,8],[35,9,35,10],[36,7,36,8],[36,9,36,10],[56,0,57,0],[56,1,57,1],[58,0,59,0],[58,1,59,1],[58,4,58,10],[59,4,59,10],[47,7,47,10],[48,7,48,10],[47,1,47,2],[47,4,47,6],[48,1,48,2],[49,0,49,1],[6,8,7,10],[17,1,19,1],[17,2,17,3],[12,7,12,10],[4,1,4,4],[14,1,15,1],[14,3,14,4],[13,2,13,3],[13,5,13,6],[13,7,13,10],[14,8,14,10],[15,3,15,4],[0,5,7,7],[1,0,1,2],[5,0,13,0],[5,1,8,1],[5,2,8,4],[8,6,8,7],[8,8,8,10],[9,2,9,3],[9,5,9,6],[9,7,9,10],[10,5,10,6],[10,7,10,10],[30,7,30,10],[28,9,28,10],[29,9,29,10],[26,0,31,0],[26,1,27,1],[26,5,26,10],[27,5,27,10],[28,1,29,1],[30,1,31,1],[30,2,30,3],[30,4,30,6],[26,2,26,3],[12,2,12,3],[12,5,12,6],[21,7,21,10],[21,2,21,3],[15,8,15,10],[16,2,16,10],[20,7,20,10],[24,0,25,0],[24,1,25,1],[24,5,24,10],[21,4,21,6],[22,0,23,0],[22,1,23,1],[22,2,22,5],[23,6,23,10],[23,2,23,5],[14,0,21,0],[24,2,24,3],[25,2,25,3],[10,2,10,3],[18,5,19,10],[17,5,17,10],[17,4,18,4],[20,1,21,1],[20,2,20,3],[20,4,20,6],[42,0,43,0],[42,1,43,1],[42,2,42,5],[42,6,42,10],[43,2,43,5],[43,6,43,10],[33,0,40,0],[34,9,34,10],[34,7,34,8],[38,2,38,10],[22,6,22,10],[39,2,39,10],[40,2,40,10],[27,2,27,3],[11,2,11,3],[11,5,11,6],[11,7,11,10],[54,0,54,1],[53,1,53,2],[52,1,52,2],[52,7,52,10],[52,4,52,6],[53,3,53,6],[53,7,53,10],[31,2,31,3],[31,4,31,6],[31,7,31,10],[32,3,32,4],[32,5,32,10],[41,3,41,10],[74,5,74,6],[75,5,75,6],[66,1,67,1],[61,0,61,7],[62,3,62,5],[75,7,75,10],[71,2,71,10],[68,0,69,0],[68,1,69,1],[70,8,70,10],[62,6,62,10],[73,5,73,6],[73,7,73,10],[74,2,74,3],[74,7,74,10],[75,2,75,3],[74,0,75,0],[72,0,73,0],[68,3,68,4],[68,8,68,10],[66,7,66,10],[79,2,79,3],[80,2,81,3],[48,3,48,6],[72,1,73,1],[72,2,72,3],[72,5,72,6],[66,0,67,0],[72,7,72,10],[80,7,80,10],[81,7,81,10],[77,0,77,7],[69,3,69,4],[69,8,69,10],[70,2,70,4],[63,6,63,10],[65,1,65,10],[67,7,67,10],[70,6,70,7],[80,5,81,6],[79,5,79,6],[55,1,55,10],[63,3,63,5],[74,1,75,1],[73,2,73,3]]}
["Semmelweis Egyetem",null,null,null,null,"Vonalkód",null,null,null,null,null,null,null,"Források","ÁHT"]
["BESZERZÉST MINŐSÍTŐ LAP (BML)",null,null,"V.2018_71",null,null,null,null,null,null,null,null,null,"a) intézményi keret","50 %-át meghaladó részét"]
[null,null,null,null,null,null,null,null,null,null,null,null,null,"b) intézményi alap","50 %-át meghaladó részét nem"]
[null,null,null,null,null,null,null,null,null,null,null,null,null,"c) intézményi többlet bevétel"]
["B","BESZERZÉS KEZDEMÉNYEZÉSE - SZERVEZETI EGYSÉG",null,null,null,null,null,null,null,null,null,null,null,"d) éves fejezeti előirányzat"]
["B-1","Beszerzést igénylő szervezet",null,null,null,null,null,null,null,null,null,null,null,"e) project, támogatás/Hazai "]
[null,null,null,null,null,null,null,null,"BML azonosító (a Beszerzési Ig.tölti ki).",null,null,null,null,"e) project, támogatás/EU"]
[null,null,null,null,null,null,null,null,null,null,null,null,{"$f":"IF(COUNTIF(M9:M54,\"Ok\")<19,\"Hiányzó adatok\",\"\")","v":"Hiányzó adatok"},"e) szállítói finanszírozás","Feltételes közbeszerzés"]
[null,null,null,null,null,"Iktatószám",null,null,"Eredeti / hivatkozott BML iktatószáma\n(Korábbi, sztornózott BML esetén)",null,null,null,{"$f":"IF(SUBSTITUTE(C6,\" \",\"\")=\"\",B6,\"Ok\")","v":"Beszerzést igénylő szervezet"},"f) Korm.hat.alapján előirányzat ","Igen"]
[null,null,"Név",null,"Beosztás","Telefon / Mobil / Fax",null,"E-mail",null,null,null,null,null,"g) Egyéb","Nem"]
[null,"Szervezeti egység vezetője",null,null,null,null,null,null,null,null,null,null,{"$f":"IF(SUBSTITUTE(C11,\" \",\"\")=\"\",B11,\"Ok\")","v":"Szervezeti egység vezetője"}]
[null,"Gazdasági vezető /pénzügyiellenjegyző",null,null,null,null,null,null,null,null,null,null,{"$f":"IF(SUBSTITUTE(C12,\" \",\"\")&E12&F12&H12=\"\",B12&\":\"&C10&\" \"&E10&\" \"&F10&\" \"&H10,IF(SUBSTITUTE(C12,\" \",\"\")=\"\",C10,IF(E12=\"\",E10,IF(F12=\"\",F10,IF(H12=\"\",H10,\"Ok\")))))","v":"Gazdasági vezető /pénzügyiellenjegyző:Név Beosztás Telefon / Mobil / Fax E-mail"}]
[null,"Beszerzés ügyintézője",null,null,null,null,null,null,null,null,null,null,{"$f":"IF(SUBSTITUTE(C13,\" \",\"\")&E13&F13&H13=\"\",B13&\":\"&C10&\" \"&E10&\" \"&F10&\" \"&H10,IF(SUBSTITUTE(C13,\" \",\"\")=\"\",C10,IF(E13=\"\",E10,IF(F13=\"\",F10,IF(H13=\"\",H10,\"Ok\")))))","v":"Beszerzés ügyintézője:Név Beosztás Telefon / Mobil / Fax E-mail"}]
[null,"Ügyintéző helyettese (\"négy szem elve\")                         ",null,null,null,null,null,null,null,null,null,null,{"$f":"IF(SUBSTITUTE(C14,\" \",\"\")=\"\",B14,\"Ok\")","v":"Ügyintéző helyettese (\"négy szem elve\")                         "}]
["B-2","Beszerzés jellege\n(X-el jelölve)                         ","Árubeszerzés","Szolgáltatás megrendelése",null,"Építési beruházás","Szolgáltatási koncesszió","Építési koncesszió","Tervpályázat"]
[null,null,null,null,null,null,null,null,null,null,null,null,{"$f":"IF(SUBSTITUTE(C16&D16&F16&G16&H16&I16,\" \",\"\")=\"\",B15,\"Ok\")","v":"Beszerzés jellege\n(X-el jelölve)                         "}]
[null,"Beszerzés tárgyának megnevezése\n(SAP cikkszám és CPV kód amennyiben rendelkezésre áll)",null,null,null,null,null,null,null,null,null,null,{"$f":"IF(ISBLANK(C17),B17,\"Ok\")","v":"Beszerzés tárgyának megnevezése\n(SAP cikkszám és CPV kód amennyiben rendelkezésre áll)"}]
[null,"Várható ajánlattevők száma \n(piaci információk alapján)"," ",null,"Nettó 1 M Ft alatti beszerzés egy ajánlattevővel","Monopolhelyzet vagy egyéb kivétel (Rövid szöveges leírás. \nA részletes indoklást a BML-hez csatolt nyilatkozatokkal kell alátámasztani)"]
[null,null,"Legalább kettő","Kettőnél több"]
[null,null,null,null,null,null,null,null,null,null,null,null,{"$f":"IF(C20&D20&E20&F19=\"\",B18,\"Ok\")","v":"Várható ajánlattevők száma \n(piaci információk alapján)"}]
[null,"Szállítás feltétele                                                                                                                                                                                                                                                                          (X-el jelölve)                                                                                                                                                                                                                                                                                                                            ","Eseti",null,"Rendszeres / folyamatos  (gyakoriság)",null,null,"Nem rendszeres  (időszakonkénti)"]
[]
["B-3","Beszerzés sürgőssége\n(X-el jelölve)","Soron kívüli (rendkivűli sürgősség indoklásköteles, kivizsgálást eredményez)",null,null,null,"Normál"]
[null,null,null,null,null,null,null,null,null,null,null,null,{"$f":"IF(C24&G24=\"\",B23,\"Ok\")","v":"Beszerzés sürgőssége\n(X-el jelölve)"}]
["B-4","Beszerzés adatai:","Mennyisége",null,"Dimenzió\n(db, hónap, év, kg, m3 stb.)","Egységára (Nettó Ft)\n(Több tárgy esetén a tételes becsült érték mellékletként csatolandó)"]
[null,null,null,null,null,null,null,null,null,null,null,null,{"$f":"IF(C26&F26&G26&H26&I26&J26&K26=\"\",B25&C25&\" \"&F25,IF(C26=\"\",C25,IF(F26&G26&H26&I26&J26&K26=\"\",F25,\"Ok\")))","v":"Beszerzés adatai:Mennyisége Egységára (Nettó Ft)\n(Több tárgy esetén a tételes becsült érték mellékletként csatolandó)"}]
["B-5","Beszerzés becsült összértéke\n(Kbt. szerint meghatározva):","Nettó Ft",null,"KEF díj (Ft)\n(adott esetben)","Bruttó Ft"]
[null,null,null,null,null,null,null,null,null,null,null,null,{"$f":"IF(C28&F28=\"\",B27&\" \"&C27&\" \"&F27,IF(C28=\"\",C27,IF(F28=\"\",F27,\"Ok\")))","v":"Beszerzés becsült összértéke\n(Kbt. szerint meghatározva): Nettó Ft Bruttó Ft"}]
[null,"Becsült érték megállapítás módszere, amennyiben az egybeszámított becsült érték meghaladja a közbeszerzési értékhatárt (X-el jelölve)","Előzetes (indikatív) árajánlat","Piackutatás","Szakértői becslés","Kamarai ajánlott díjszab","Kamarai építési adatbázis","Hatóság által kiadott árstatisztika","Korábbi szerz. elemzése","Egyéb"]
[]
[null,"A beszerzési igénnyel egy időben felmerült, azonos vagy hasonló áruk, szolgáltatások","Összértéke (Nettó Ft)",null,"Szállítója",null,null,"SAP szerződésazonosítója"]
[]
["B-6","Nyilatkozat a fedezetről \n                         ","A fedezet",null,null," az államháztartás alrendszereiből vagy az államháztartásról szóló 2011. évi CXCV. törvény 3/A. §-a szerinti közfeladat ellátásából származó pénzeszközök biztosítják.",null,null,null,null,null,null,{"$f":"IF(D33=\"\",B33,\"Ok\")","v":"Nyilatkozat a fedezetről \n                         "}]
["B-7","Beszerzési fedezet forrása(i)","Forrás csoport","A forrás pontos megnevezése, projekt/pályázat jele",null,"A forrásból származó összeg (Ft)","Forrás csoport","A forrás pontos megnevezése, projekt/pályázat jele",null,"A forrásból származó összeg (Ft)"]
[null,"Forrás 1-2",null,null,null,null,null,null,null,null,null,null,{"$f":"IF(OR(AND(OR(C35=\"\",D35=\"\"),F35<>\"\"),AND(OR(G35=\"\",H35=\"\"),J35<>\"\")),$B$34&\" \"&\"Csoport? Megnevezés?\",\"Ok\")","v":"Ok"}]
[null,"Forrás 3-4",null,null,null,null,null,null,null,null,null,null,{"$f":"IF(OR(AND(OR(C36=\"\",D36=\"\"),F36<>\"\"),AND(OR(G36=\"\",H36=\"\"),J36<>\"\")),$B$34&\" \"&\"Csoport? Megnevezés?\",\"Ok\")","v":"Ok"}]
[null,"Forrás 5-6",null,null,null,null,null,null,null,null,null,null,{"$f":"IF(OR(AND(OR(C37=\"\",D37=\"\"),F37<>\"\"),AND(OR(G37=\"\",H37=\"\"),J37<>\"\")),$B$34&\" \"&\"Csoport? Megnevezés?\",\"Ok\")","v":"Ok"}]
[null,"Megjegyzés a forrással kapcs.\npl. az ajánlatkérésben / szerződésben feltüntetendő azonosító"]
[null,"Fedezetigazolás / Beszerzés fedezete, a források összértéke (bruttó Ft)",{"$f":"F35+F36+F37+J35+J36+J37","v":0},null,null,null,null,null,null,null,null,null,{"$f":"IF(OR(C39=\"\",C39=0),B39,\"Ok\")","v":"Fedezetigazolás / Beszerzés fedezete, a források összértéke (bruttó Ft)"}]
[null,"Tárgyévi fedezet összege (bruttó Ft)",null,null,null,null,null,null,null,null,null,null,{"$f":"IF(C40=\"\",B40,\"Ok\")","v":"Tárgyévi fedezet összege (bruttó Ft)"}]
[null,"Tárgyéven túli fedezet össz. (br. Ft)",null,null,null,null,null,null,null,null,null,null,{"$f":"IF(OR(C39-C40<>C41),B41,\"Ok\")","v":"Ok"}]
[null,"Feltételes (köz)beszerzés (indoklás szükséges)","Nem",null,null,null,null,null,null,null,null,null,{"$f":"IF(OR(C42=\"Nem\",D42<>\"\"),\"Ok\",\"Indoklás szükséges!\")","v":"Ok"}]
["B-8","Szerződésre vonatkozó adatok","Szerződés hatályának tervezett kezdete",null,null,null,"Szeződés hatályának tervezett vége"]
[]
[]
["Dátum: 20…...., év ……………………..…….hónap ……..nap",null,null,"Dátum: 20…...., év ……………………..…….hónap ……..nap",null,null,null,"Dátum: 20…...., év ……………………..…….hónap ……..nap"]
[]
[null,"………………………………………………………………..",null,null,"…………………………………………………………..",null,null,"………………………………………………………….."]
[null,"\nBeszerzést igénylő szervezet vezetőjének aláírása *",null,"\nBeszerzést igénylő szervezet pénzügyi ellenjegyzőjének aláírása *",null,null,null,"\nKancellári egyetértési jog gyakorlója "]
["* Minden esetben kötelező"]
[]
["Dátum: 20…...., év ……………………..…….hónap ……..nap",null,null,"Dátum: 20…...., év ……………………..…….hónap ……..nap",null,null,null,"Dátum: 20…...., év ……………………..…….hónap ……..nap"]
[null,"………………………………………………………………..",null,null,"…………………………………………………………..",null,null,"………………………………………………………….."]
[null,"\nRektor aláírása **",null,"\nKancellár aláírása (kötelezettségvállaló, egyetértési jog gyakorlója)**",null,null,null,"\nGazdasági Főigazgató aláírása (ellenjegyző**)"]
["** Kötelezettségvállalási Szabályzat szerint"]
["Sz","SZAKMAI MEGFELELŐSÉG IGAZOLÁSA - SZAKIGAZGATÓSÁG"]
["Sz-1","Szakterületi besorolás\n(X-el jelölve)","Vagyon- és Létesítmény -gazdálkodási Igazgatóság","Biztonságtechnikai  Igazgatóság","Informatikai Igazgatóság","Központi Könyvtár","Kommunikációs és Rendezvényszervezési Igazgatóság","Orvosszakmai, Finanszírozási és Minőségbiztosítási Főigazgatóság","Szolgáltatási Igazgatóság","Beruházási és Létesítmény-fenntartási Ig.","Egyéb:"]
[]
["Sz-2","Szakmai tartalom\n(megfelelés esetén X, ellenkező esetben rövid indoklás.)","Megfelel","Nem felel meg","Megjegyzés \n(kiemelt termék azonosítója/cikkszáma, keretmegállapodás azonosítója, nem megfelelőség esetén indoklás)"]
[]
[]
["Dátum: 20………..., év ……………………..…….hónap ……....nap"]
[null,null,null,"…………………………………………………………",null,null,"…………………………………………………………"]
[null,null,null,"Előadó",null,null,"Szakigazgatóság vezetője / Szakmai ellenjegyző"]
[]
["M","MINŐSÍTÉS - BESZERZÉSI IGAZGATÓSÁG"]
["M-1","Minősítés\n(X-el jelölve)","Egyszerű beszerzés","Külön szabályozott közbeszerzés","Közbeszerzés","Kbt. kivételi kör","459/2016. Korm.rend. szeinti kivétel (a….z)","A termékre/ szolgáltatásra már van érvényes szerződés"]
[null,null,null,null,null,null,null,"SAP szám:"]
["M-2","A beszerzés besorolása\n(X-el jelölve)","Árubeszerzés","Szolgáltatás megrendelése",null,"Építési beruházás","Szolg. koncesszió","Építési koncesszió","Tervpályázat"]
[]
["M-3","Közbeszerzési terv (X-el jelölve)"," Közbeszerzési terv tartalmazza a beszerzést:",null,null,null," Közbeszerzési tervet módosítani szükséges:"]
["M-4","Alkalmazásra kerülő beszerzési eljárás eljárásrendje"]
["M-5","Beszerzés ügyintézője","Név",null,"Beosztás","Telefon / mobil /Fax",null,"E-mail"]
[]
["M-6","Beszerzés ellenőrzője\n(\"négy szem\" elve)","Név",null,"Beosztás","Telefon / mobil / Fax",null,"E-mail"]
[]
[]
["Dátum: "]
[]
[null,null,"……………………………………………………………………",null,"……..                              ……..","……………………………………………………………………"]
[null,null,"Beszerzéstervezési és Minősítési Osztály\n osztályvezető",null,null,"Beszerzésminősítési és Közbeszerzési Főosztály főosztályvezető",null,"…………………………………………………………."]
[null,null,null,null,"Beszerzés minősítője",null,null,"Beszerzési igazgató"]
["Minősítés helye"]

{"sheet":"Adatok_BML","index":1,"n_rows":25,"n_cols":17,"rows_kept":25,"cut":false,"hidden":true,"merged":[]}
["Beszerzést igénylő szervezeti egység","Vezető","Beosztás","Mobil","E-mail","Ellenjegyző","Beosztás","Mobil","E-mail","Beszerzés ügyintézője","Beosztás","Mobil","E-mail","Helyettes","Beosztás","Mobil","E-mail"]
[]
[]
[]
[]
[]
[]
[]
[]
[]
[]
[]
[]
[]
[]
[]
[]
[]
[]
["Beszerzést igénylő szervezet vezetőjének aláírása *"]
["Beszerzést igénylő szervezet pénzügyi ellenjegyzőjének aláírása *"]
["Kancellári egyetértési jog gyakorlója (Külső/Belső Klinikai Tömb)"]
["Rektor aláírása (kötelezettségvállaló, engedélyező)**"]
["Kancellár aláírása (kötelezettségvállaló, engedélyező)**"]
["Gazdasági Főigazgató aláírása (ellenjegyző**)"]

{"sheet":"BML kitöltési útmutatója","index":2,"n_rows":89,"n_cols":1,"rows_kept":89,"cut":false,"hidden":false,"merged":[]}
["BESZERZÉST MINŐSÍTŐ LAP (BML) kitöltési útmutatója"]
[]
["1.    „B” jelű rész rovatait a beszerzést kezdeményező szervezeti egység tölti ki az alábbiak szerint"]
[]
["B-1 rész és rovatai:"]
["· A Beszerzést Minősító Lapot az Iratkezelési Szabályzatnak megfelelően iktatni kell."]
["· Beszerzést igénylő szervezeti egység pontos (a Semmelweis Egyetem Szervezeti és Működési Rendje és organogramja szerinti) megnevezése."]
["· Szervezeti egység vezetője (kötelezettségvállaló), gazdasági vezető/pénzügyi ellenjegyző a Kötelezettségvállalási Szabályzat előírásának megfelelően. "]
["· Beszerzés ügyintézőjének neve, beosztása és elérhetősége értelemszerűen."]
["· Beszerzés ellenőrzőjének neve, beosztása és elérhetősége abban az esetben kell utólag beírni, ha a BML minősítését követően, a beszerzést - a Beszerzési Igazgatóság átruházása alapján - az igénylő szervezet bonyolítja le. "]
["Figyelem! Az igénylő szervezetnek is biztosítania kell a beszerzés ellenőrzését, a  „négyszem elvét”."]
[]
["B-2 rész és rovatai:"]
["· Beszerzés jellege: beszerzési igény besorolása a felsorolásnak megfelelően a megfelelő rovatba tett X jellel."]
["· Beszerzés tárgyának megnevezése: a beszerzés tárgyát lehetőség szerint legpontosabban meg kell határozni."]
["· Várható ajánlattevők száma: értelemszerűen kell a rovatokat kitölteni. Monopolhelyzet fennállása esetén a BML-en csak rövid szöveges leírást kell megadni. A részletes indoklást szakmai nyilatkozattal (adott esetben kiegészítve a gyártó által kiállított, a forgalmazó kizárólagosságát igazoló dokumentummal) szükséges alátámasztani."]
[]
["· Szállítás feltétele értelemszerűen. A rendszeres/folyamatos szállítás esetén a gyakoriságot (napi, heti, havi) is be kell írni."]
[]
["B-3 rész rovatai:"]
["Beszerzés sürgősségét kell meghatározni megfelelő rovatba tett X jellel."]
["Figyelem! A „soron kívüli” sürgősség kizárólag akkor áll fenn, ha életveszély vagy maradandó egészségkárosodás közvetlen veszélye, súlyos baleset veszélyének elhárítása, valamint hirtelen felmerült jelentős értékvesztés megelőzéséhez szükséges vagyonvédelem kialakítása érdekében szükséges haladéktalan intézkedés megtétele a beszerzés megvalósítása érdekében. A „soron kívüli” sürgősség megjelölése az ügylet utólagos kivizsgálását eredményezheti!"]
[]
["B-4 rész és rovatai:"]
["· Beszerzés mennyiségét meg kell adni (természetes mértékegységben – pl. db, kg, óra, stb.) valamint"]
["· a mennyiségi egységre vonatkozó becsült/várható egységárat (pl. Ft/db, Ft/kg, Ft/óra stb.), mely figyelembe vételével történik a beszerzés becsült értékének kiszámítása."]
[]
["B-5 rész és rovatai:"]
["· Beszerzés becsült nettó és bruttó értékét a Kbt.- ban leírtak alapján meghatározva kell beírni."]
["§  Határozott idejű (pl.:3 évre szóló) szerződés esetén a 3 évi beszerzés összegét kell beírni. "]
["§  Határozatlan idejű szerződés esetén a beszerzés 48 havi beszerzési értékét kell figyelembe venni."]
["·  A becsült érték megállapítás módszerét a megfelelő rovatba tett X jellel kell megadni, amennyiben az egybeszámított becsült érték meghaladja a közbeszerzési értékhatárt."]
[]
["B-6 rész: A nyilatkozat a fedezetről rovatba, a rendelkezésre álló fedezetre vonatkozó nyilatkozatot kell tenni, mely az össz fedezet államháztartási forrásból származó részére vonatkozik.  "]
[]
["B-7 rész és rovatai:"]
["· Beszerzés fedezetének forrását csoportok szerint bontva, a pontos megnevezés feltüntetésével kell meghatározni. (Amennyiben szükséges, az itt megadott adatok alapján kerül feltüntetésre a  forrás az ajánlatkérésben, valamint a megkötendő szerződésben.  (Pl.: pályázati források felhasználása esetén.)"]
["· Fedezetigazolás: a beszerzés fedezetét úgy kell megadni, hogy tartalmazza a beszerzés során felmerült valamennyi költséget."]
["· A fedezet forrásainak összértéke biztosítja a beszerzés fedezetét (automatikusan összesítve)."]
["· Tárgyévi fedezet összege rovatba be kell írni a beszerzés becsült összegéből a tárgy évre jutó részt bruttó Ft-ban."]
["· Tárgyéven túli fedezet összege rovatba a beszerzés bruttó fedezetének és a tárgyévi fedezet különbözetét kell beírni bruttó értékben."]
[]
["B-8 rész rovataiba: Folyamatos teljesítés esetén a szerződés tervezet kezdési illetve teljesítés befejezési időpontját kell beírni. Egyszeri beszerzés esetén nem kell kitölteni!"]
[]
["§    A hiánytalanul kitöltött, dátummal ellátott, az Egyetem Kötelezettségvállalási Szabályzata szerinti kötelezettségvállaló és ellenjegyző által aláírt BML-t el kell juttatni a beszerzés szakmai megfelelőségét igazoló, beszerzés tárgya szerint illetékes szakigazgatósághoz. "]
["§    Az ügyintézési határidők betarthatósága érdekében javasolt az elektronikus továbbítás (beszkennelve e-mail mellékleteként, esetleg telefaxon)."]
[]
["Az Egyetem Kötelezettségvállalási Szabályzata alapján a rektor, illetve a kancellár a kötelezettségvállaló minden 5 millió forintot meghaladó, továbbá a mindenkori költségvetési törvényben a közbeszerzésekre megállapított nemzeti értékhatár feletti kötelezettségvállalás esetén, valamint a rektor, illetve a kancellár engedélyével érvényesek a következő kötelezettségvállalások: támogatási szerződések, a többéves előirányzatot terhelő kötelezettségvállalások, az Egyetem egészét érintő szerződés, amelyben az Egyetem nemzetközi félként vesz részt, és a partner nem magyarországi illetőségű.\n\nKonkrét példák:\n- 1.500.000 Ft értékű kötelezettségvállalás esetén a BML-t alá kell írnia a beszerzést igénylő szervezet vezetőjének, mint kötelezettségvállalónak, a beszerzést igénylő szervezet pénzügyi ellenjegyzőjének, \n- 2.500.000 Ft értékű többéves előirányzatot terhelő kötelezettségvállalás esetén a BML-t alá kell írnia a beszerzést igénylő szervezet vezetőjének, mint kötelezettségvállalónak, a beszerzést igénylő szervezet pénzügyi ellenjegyzőjének, valamint a  rektornak, illetve a kancellárnak\n- 5.500.000 Ft értékű kötelezettségvállalás esetén a BML-t alá kell írnia a beszerzést igénylő szervezet vezetőjének, aki a szükséges forrást rendelkezésre bocsájtja, a beszerzést igénylő szervezet pénzügyi ellenjegyzőjének, valamint a  rektornak, illetve a kancellárnak, mint kötelezettségvállalónak és a gazdasági főigazgatónak is, mint a kötelezettségvállaló pénzügyi ellenjegyzőjének \n\nA kötelezettségvállalási, ellenjegyzési, egyetértési és engedélyezési jogok részletes szabályozását a Kötelezettségvállalási Szabályzat tartalmazza."]
[]
["§   A hiányosan vagy nem megfelelően kitöltött BML-t a Szakigazgatóságok értékelés és további ügyintézés nélkül visszaküldhetik az igénylőnek!"]
[]
["2.    „Sz” jelű rész rovatait a beszerzés tárgya szerint illetékes Szakigazgatóság tölti ki:"]
[]
["Sz-1 rész: Az illetékes Szakigazgatóság a megfelelő rovatba tett X jellel igazolja illetékességét."]
["§   Ha az igénylőnek ezt követően sem sikerül megállapítania az illetékes Szakigazgatóságot, a BML-t a Beszerzési Igazgatóság részére kell megküldenie."]
["§   A Beszerzési Igazgatóság ezt követően saját hatáskörében beazonosítja a beszerzés tárgyáért felelős Szakigazgatóságot, és megküldi számára a BML - t."]
[]
["Sz-2 rész: A Szakigazgatóság – a BML-hez mellékelt dokumentumok alapján – a beszerzést"]
["· ha szakmailag indokoltnak tartja, akkor a „megfelel” rovatba tett X jellel nyilatkozik,"]
["· ha szakmailag indokolatlannak ítéli meg, akkor a „nem felel meg” rovatba tett X jellel nyilatkozik.\nAz elutasítás indoklását a Szakigazgatóság a Megjegyzés rovatba írja be."]
["§ Kiemelt termék beszerzése esetén a Szakigazgatóság a Megjegyzés rovatban megadja a kiemelt termék és a vonatkozó keretmegállapodás azonosítóját."]
[]
["§   Ha a Szakigazgatóság állásfoglalása szerint a beszerzés szakmai tartalma megfelelő, a Szakigazgatóság illetékes előadója és a Szakigazgatóság vezetője aláírásával igazolja azt, majd az aláírt BML-t eljuttatja a Beszerzési Igazgatósághoz."]
["§   Ha a Szakigazgatóság állásfoglalása elutasító, a Szakigazgatóság az igénylőnek vissza küldi a BML-t. "]
["§   Ezt követően az igénylőnek két lehetősége van: "]
["o    egyeztethet a beszerzés elutasításának okáról a Szakigazgatósággal, s ennek eredményként ismételt állásfoglalást kérhet; illetve "]
["o    a Szakigazgatóság közvetlen felettes szervezeti egységéhez fordulhat egyeztetési, illetékes felsővezetői állásfoglalási kérelemmel."]
[]
["3.    „M” jelű rész rovatait a Beszerzési Igazgatóság tölti ki"]
[]
["M-1 rész: A Beszerzési Igazgatóság a Kbt. valamint a vonatkozó kormányrendeletek alapján minősíti a beszerzési igényt, és a megfelelő rovatba tett X jellel jelöli a beszerzés típusát."]
[]
["M-2 rész: A megfelelő rovatba tett X jellel jelzésre kerül a beszerzés Kbt. szerinti besorolása."]
[]
["M-3 rész: Közbeszerzési terv:  a szakterület előzetes tervének megfelelően kell meghatározni megfelelő rovatba tett X jellel."]
[]
["M-4 rész: Itt kell meghatározni az alkalmazásra kerülő beszerzési eljárás  fajtáját vagy típusát."]
[]
["§   Amennyiben a minősítés során az M-1 részben a külön szabályozott közbeszerzés vagy az egyéb kategória kerül megjelölésre, az M-4-as rovat kitöltése kötelező."]
[]
["M-5 rész: Itt kell meg adni a beszerzés lebonyolításáért felelős ügyintéző / referens nevét, beosztását és elérhetőségét."]
[]
["§   A beszerzés minősítését követően dátummal ellátott, BML-t a beszerzést minősítő és a beszerzési igazgató aláírja"]
["§   Amennyiben a beszerzési eljárást a Beszerzési Igazgatóság folytatja je, a BML eredeti példánya a Beszerzési Igazgatóságon marad."]
[]
["M-6 rovat: Ebbe a rovatba kell beírni a beszerzés ellenőrzőjének nevét, beosztását, elérhetőségét. Az ellenőr kijelölésével biztosított a „négy szem elve”."]
["Figyelem! Ezt a rovatot csak a Beszerzési Igazgatóság által bonyolított beszerzések esetén kell kitölteni."]
[]
["A Beszerzési Igazgatóság a beszerzési igény minősítését követően a BML egy másolati példányát tájékoztatásul visszaküldi az igénylő szervezeti egységnek."]

{"sheet":"Mi változott","index":3,"n_rows":6,"n_cols":4,"rows_kept":6,"cut":false,"hidden":true,"merged":[]}
["Kitől","Kérés","Megoldás","verzió"]
["Nagy Katalin:","Legyen Zöld az iktatószám","ok","v02"]
[null,"Legyen formázható a besz. Tárgya (pirossal szokták a saját hat.körös utazást)","Minden formázható","v02_1"]
[null,"Aláírások","Szerkeszthető","v02_1"]
[null,"Több nettó egységár vihető föl","ok","v03"]
[null,"Listából választható a szervezeti egység az Adatok_BML munkalapról","ok","v03"]

{"sheet":"SAL","index":4,"n_rows":74,"n_cols":12,"rows_kept":74,"cut":false,"hidden":false,"merged":[[4,0,5,0],[4,1,5,3],[5,4,5,6],[5,7,5,10],[40,6,40,8],[37,1,37,2],[4,7,4,10],[6,4,6,6],[6,7,6,10],[6,1,6,3],[16,2,16,5],[20,1,22,10],[20,0,22,0],[9,0,18,0],[18,2,18,5],[17,2,17,5],[0,0,0,10],[13,6,18,6],[12,7,18,10],[3,1,3,10],[1,0,1,1],[2,0,2,1],[1,2,2,10],[9,6,9,7],[14,2,14,5],[10,7,10,10],[11,7,11,10],[10,2,10,5],[11,2,11,5],[12,2,12,5],[7,1,7,10],[4,4,4,6],[15,2,15,5],[9,2,9,5],[9,8,9,10],[13,2,13,5],[24,0,31,0],[39,6,39,8],[33,0,35,0],[24,2,24,10],[25,2,25,10],[26,2,26,10],[27,2,27,10],[28,2,28,10],[29,2,29,10],[30,2,30,10],[33,1,35,10],[31,2,31,10]]}
[]
["SPECIFIKÁCIÓS ADATLAP (SAL)",null,{"$f":"L2","v":0},null,null,null,null,null,null,null,null,{"$f":"BML!C17","v":0}]
["A (köz)beszerzés tárgya a BML-en:"]
["(Köz)besz. mennyisége (db, hónap, év, kg, m3 stb.):",{"$f":"L4","v":" "},null,null,null,null,null,null,null,null,null,{"$f":"CONCATENATE(BML!C26,\" \",BML!E26)","v":" "}]
["Teljesítés helye (szervezeti egység, cím):",null,null,null,"Teljesítéssel kapcsolatos kapcsolattartó (név, telefon, fax, e-mail):",null,null,{"$f":"L5","v":""},null,null,null,{"$f":"IF(BML!C13=\"\",\"\",CONCATENATE(BML!C13,\" Tel: \",BML!F13,\", \",BML!H13))","v":""}]
[null,null,null,null,"Pénzügyi teljesítéssel kapcsolatos kapcsolattartó (név, telefon, fax, e-mail):",null,null,{"$f":"L6","v":""},null,null,null,{"$f":"IF(BML!C12=\"\",\"\",CONCATENATE(BML!C12,\" Tel: \",BML!F12,\", \",BML!H12))","v":""}]
["Teljesítési/szállítási határidő (Az SAP megrendelést követő napok száma)",null,null,null,"Teljesítési/szállítási véghatáridő és indoklása (pl. támogatások elszámolása)"]
["Teljesítés speciális feltételei (átadás-átvétel rendje, bizonylati rend, teljesítési ütemterv, mennyiségi, minőségi kifogásolás igényelt rendje):"]
["Szerződés típusa:"]
["Követelmények,\nműszaki leírás","árubeszerzés esetén","részletek",null,null,null,"szolgáltatás beszerzés esetén",null,"részletek   "]
[]
[]
[]
[]
[]
[]
[]
[]
[]
[]
["Részletes műszaki leírás \nKEF kiemelt termékek esetén a KEF keretmegállapodás azonosítója és a termék cikkszáma, adott esetben az Informatikai Igazgatóság által meghatározott konfig.\n(Szükség esetén külön mellékletben csatolva.)"]
[]
[]
[]
["Értékelési szempontok\n(Plusz szempontok, melyek teljesítése nélkül is érvényes az ajánlat, de ezek teljesítésére figyelemmel válaszható ki a legkedvezőbb ajánlat.)",null,"Kizárólag a megajánlott ár az értékelési szempont. (Ne jelöljön be további szempontokat!)"]
[null,null,"Az áron kívül az alább részletezett szempontokat is figyelembe kell venni az értékelésnél."]
[]
[]
[]
[]
[]
[]
[]
["Opció, ha szükésges (és lehívásának módja)"]
[]
[]
[]
["Kelt:"]
[]
[]
[null,null,null,null,null,null,"az igénylő szervezeti egység vezetője"]
[]
[]
[]
[]
[]
[]
[]
[]
[]
[]
[]
[]
[]
[]
[]
[]
[]
[]
[]
[]
[]
[]
[]
[]
[]
[null,null,"Aláírás[4]"]
[]
[]
[]
["[1] Például támogatások elszámolása."]
["[2] Egyenértékű termék kizárása nem jelent kizárólagos szállítót."]
["[3]A részletes műszaki leírást kérjük mellékletben csatolni."]
["[4] A Specifikációs Adatlapot az igénylő szervezet vezetőjének kell aláírnia."]

{"sheet":"RAL","index":5,"n_rows":53,"n_cols":11,"rows_kept":53,"cut":false,"hidden":false,"merged":[[40,10,41,16],[30,10,31,16],[10,10,11,16],[42,10,49,16],[0,10,1,16],[20,10,21,16],[41,0,41,7],[50,1,50,8],[42,0,45,1],[42,2,45,8],[49,4,49,7],[47,4,47,7],[47,1,47,2],[48,4,48,7],[15,0,15,1],[15,2,15,8],[25,0,25,1],[25,2,25,8],[35,0,35,1],[35,2,35,8],[21,0,21,7],[31,0,31,7],[33,2,33,8],[34,2,34,8],[27,2,27,8],[28,2,28,8],[29,2,29,8],[30,2,30,8],[32,0,32,1],[32,2,32,8],[36,0,36,1],[36,2,36,8],[37,0,40,0],[37,2,37,8],[38,2,38,8],[39,2,39,8],[40,2,40,8],[26,2,26,8],[12,2,12,8],[13,2,13,8],[14,2,14,8],[16,0,16,1],[16,2,16,8],[17,0,20,0],[17,2,17,8],[18,2,18,8],[19,2,19,8],[20,2,20,8],[22,2,22,8],[23,0,23,1],[23,2,23,8],[24,0,24,1],[24,2,24,8],[9,2,9,8],[10,2,10,8],[4,0,4,1],[4,2,4,8],[5,0,5,1],[5,2,5,8],[13,0,13,1],[14,0,14,1],[12,0,12,1],[1,0,1,1],[3,0,3,1],[7,0,10,0],[6,0,6,1],[11,0,11,7],[3,2,3,8],[6,2,6,8],[0,2,1,8],[0,0,0,1],[2,0,2,1],[2,2,2,8],[7,2,7,8],[8,2,8,8],[34,0,34,1],[22,0,22,1],[26,0,26,1],[33,0,33,1],[27,0,30,0]]}
["REGISZTRÁCIÓS ADATLAP (RAL)",null,{"$f":"BML!C17","v":0},null,null,null,null,null,null,null,"Kitöltési segédlet"]
["A (köz)beszerzés tárgya a BML-en:"]
["1. ajánlattevő neve:"]
["székhelye:"]
["adószám / adóazonosító"]
["cég esetében a cégbírósági nyilvántartása száma: "]
["egyéni válllalkozói / őstermelői igazolvány száma: "]
["Elérhetőség ","címe:"]
[null,"faxszáma:"]
[null,"e-mail címe:"]
[null,"telefonszáma:",null,null,null,null,null,null,null,null,"A védett munkahely 30%-ot meghaladó mértékben megváltozott munkaképességű vagy hátrányos helyzetű munkavállalókat alkalmaz, vagy fogyatékosokat alkalmazó szociális intézmény."]
["Kbt. 33. § szerinti védett munkahelyhez tartozik"]
["2. ajánlattevő neve:"]
["székhelye:"]
["adószám/adóazonosító"]
["cég esetében a cégbírósági nyilvántartása száma: "]
["egyéni válllalkozói / őstermelői igazolvány száma: "]
["Elérhetőség ","címe:"]
[null,"faxszáma:"]
[null,"e-mail címe:"]
[null,"telefonszáma:",null,null,null,null,null,null,null,null,"A védett munkahely 30%-ot meghaladó mértékben megváltozott munkaképességű vagy hátrányos helyzetű munkavállalókat alkalmaz, vagy fogyatékosokat alkalmazó szociális intézmény."]
["Kbt. 33. § szerinti védett munkahelyhez tartozik "]
["3. ajánlattevő neve:"]
["székhelye:"]
["adószám/adóazonosító"]
["cég esetében a cégbírósági nyilvántartása száma: "]
["egyéni válllalkozói / őstermelői igazolvány száma: "]
["Elérhetőség ","címe:"]
[null,"faxszáma:"]
[null,"e-mail címe:"]
[null,"telefonszáma:",null,null,null,null,null,null,null,null,"A védett munkahely 30%-ot meghaladó mértékben megváltozott munkaképességű vagy hátrányos helyzetű munkavállalókat alkalmaz, vagy fogyatékosokat alkalmazó szociális intézmény."]
["Kbt. 33. § szerinti védett munkahelyhez tartozik"]
["4. ajánlattevő neve:"]
["székhelye:"]
["adószám/adóazonosító"]
["cég esetében a cégbírósági nyilvántartása száma: "]
["egyéni válllalkozói / őstermelői igazolvány száma: "]
["Elérhetőség ","címe:"]
[null,"faxszáma:"]
[null,"e-mail címe:"]
[null,"telefonszáma:",null,null,null,null,null,null,null,null,"A védett munkahely 30%-ot meghaladó mértékben megváltozott munkaképességű vagy hátrányos helyzetű munkavállalókat alkalmaz, vagy fogyatékosokat alkalmazó szociális intézmény."]
["Kbt. 33. § szerinti védett munkahelyhez tartozik "]
["Háromnál kevesebb, vagy kizárólag egy ajánlattevő felkérésének indoka:\n(Szükség esetén az igazolások csatolásával.)\n",null,null,null,null,null,null,null,null,null,"Nettó 1 M Ft becsült értéketelérő vagy meghaladó beszerzés estén a háromnál kevesebb, vagy kizárólagos ajánlattevő indoka lehet többek között:\n - a beszerzés tárgya egyedi gyártásu áru, feltéve ha az áru egyediségét a gyártó igazolja és egyenértékű (más azonos célra gyártott) termék csatolt szakmai indoklással alátámasztott műszaki/ technikai sajátosságok miatt nem alkalmas;\n - dokumentált piackutatás eredményeként igazolható, hogy az adott piacon háromnál kevesebb ajánlatkérő lelhető fel;\n- a szerződést külföldön kell megkötni vagy teljesíteni;\n- a fizetési kötelezettség előre meghirdetett tanfolyamra, képzésre, konferenciára történő jelentkezéssel kapcsolatos.\n"]
[]
[]
[]
[]
["Kelt:"]
[]
[null,null,null,null,"az igénylő szervezeti egység vezetője"]
["Figyelem!","Nem adható olyan ajánlattevő, amely szerepel az el nem fogadható szállító kategóriában   (http://semmelweis.hu/minoseg/letolthetodokumentumok/se-minositett-beszallitok/)."]
[]
[null,"  "]

{"sheet":"BEF","index":6,"n_rows":59,"n_cols":13,"rows_kept":59,"cut":false,"hidden":false,"merged":[[58,0,58,10],[21,3,21,4],[21,7,21,8],[21,9,21,10],[22,3,22,4],[22,7,22,8],[22,9,22,10],[21,1,22,1],[23,2,23,10],[24,2,24,10],[53,0,53,7],[55,2,55,3],[55,5,55,6],[56,2,57,3],[56,5,57,6],[56,7,56,10],[57,7,57,10],[50,0,51,0],[50,1,51,1],[50,3,50,4],[50,8,50,10],[51,3,51,4],[51,8,51,10],[45,3,45,5],[45,6,45,10],[47,1,47,10],[48,0,49,0],[48,1,49,1],[48,7,48,10],[49,7,49,10],[44,3,44,5],[44,6,44,10],[34,1,34,2],[34,3,34,6],[34,7,34,10],[35,0,35,1],[37,1,37,10],[38,0,39,0],[38,1,39,1],[40,0,41,0],[40,1,41,1],[40,4,40,10],[41,4,41,10],[43,0,43,7],[29,1,29,2],[29,3,29,6],[29,7,29,10],[30,0,30,1],[33,1,33,2],[33,4,33,6],[33,7,33,10],[28,1,28,2],[28,4,28,6],[28,7,28,10],[17,2,17,10],[18,2,18,10],[19,1,20,1],[19,2,19,4],[19,5,19,10],[20,2,20,4],[20,5,20,10],[10,5,10,6],[18,0,24,0],[15,0,16,0],[15,1,16,1],[15,2,15,4],[15,5,15,6],[16,2,16,4],[16,5,16,6],[16,7,16,10],[11,5,11,6],[11,7,11,10],[12,2,12,3],[12,5,12,6],[12,7,12,10],[14,2,14,10],[15,7,15,10],[13,2,13,10],[0,5,7,7],[1,0,1,4],[4,1,4,4],[5,0,11,0],[5,1,8,1],[10,7,10,10],[11,2,11,3],[8,8,8,10],[9,2,9,3],[9,5,9,6],[9,7,9,10],[6,8,6,10],[7,8,7,10],[8,6,8,7],[5,2,8,4],[10,2,10,3]]}
["Semmelweis Egyetem",null,null,null,null,"Vonalkód"]
["BESZERZÉSI ELJÁRÁS FEDEZETEMELÉS (BEF)"]
[]
[]
["B","Beszerzési adatok"]
["B-1","Igénylő / pótlólagos fedezetet biztosító szervezet"]
[null,null,null,null,null,null,null,null,"Az eljárást elindító, eredeti BML azonosítója (Beszerzési Ig. azonosító száma) "]
[null,null,null,null,null,null,null,null,null,null,null,null,{"$f":"IF(COUNTIF(M9:M35,\"Ok\")<11,\"Hiányzó adatok\",\"\")","v":"Hiányzó adatok"}]
[null,null,null,null,null,"Iktatószám (az eredeti iktatószámra alszámozva)",null,null,"Eredeti BML iktatószáma:",null,null,null,{"$f":"IF(SUBSTITUTE(C6,\" \",\"\")=\"\",B6,\"Ok\")","v":"Igénylő / pótlólagos fedezetet biztosító szervezet"}]
[null,null,"Név",null,"Beosztás","Telefon / Mobil / Fax",null,"E-mail"]
[null,"Szervezeti egység vezetője (kötelezettségvállaló )",null,null,null,null,null,null,null,null,null,null,{"$f":"IF(SUBSTITUTE(C11,\" \",\"\")=\"\",B11,\"Ok\")","v":"Szervezeti egység vezetője (kötelezettségvállaló )"}]
[null,"Gazdasági vezető /pénzügyi ellenjegyző",null,null,null,null,null,null,null,null,null,null,{"$f":"IF(SUBSTITUTE(C12,\" \",\"\")=\"\",B12,\"Ok\")","v":"Gazdasági vezető /pénzügyi ellenjegyző"}]
[null,"Beszerzést lebonyolító ügyintéző, kapcsolattartó",null,null,null,null,null,null,null,null,null,null,{"$f":"IF(SUBSTITUTE(C13,\" \",\"\")=\"\",B13,\"Ok\")","v":"Beszerzést lebonyolító ügyintéző, kapcsolattartó"}]
[]
[null,"Beszerzés tárgyának megnevezése (az eredeti igénnyel azonos módon)\n",null,null,null,null,null,null,null,null,null,null,{"$f":"IF(ISBLANK(C15),B15,\"Ok\")","v":"Beszerzés tárgyának megnevezése (az eredeti igénnyel azonos módon)\n"}]
["B-2","Beszerzés becsült összértéke az eredeti igény szerint","Nettó Ft",null,null,"KEF díj (adott esetben)",null,"Bruttó Ft"]
[null,null,null,null,null,null,null,null,null,null,null,null,{"$f":"IF(C17&H17=\"\",B16&\" \"&C16&\" \"&H16,IF(C17=\"\",C16,IF(H17=\"\",H16,\"Ok\")))","v":"Beszerzés becsült összértéke az eredeti igény szerint Nettó Ft Bruttó Ft"}]
[null,"Beszerzés fedezete az eredeti igény szerint (bruttó Ft) ",null,null,null,null,null,null,null,null,null,null,{"$f":"IF(C18=\"\",B18,\"Ok\")","v":"Beszerzés fedezete az eredeti igény szerint (bruttó Ft) "}]
["B-3","A módosítás oka"]
[null,"A (köz)beszerzési eljárás során benyújtott legelőnyösebb ajánlat értéke","Nettó Ft",null,null,"Bruttó Ft"]
[null,null,null,null,null,null,null,null,null,null,null,null,{"$f":"IF(C21&F21=\"\",B20&\" \"&C20&\" \"&F20,IF(C21=\"\",C20,IF(F21=\"\",F20,\"Ok\")))","v":"A (köz)beszerzési eljárás során benyújtott legelőnyösebb ajánlat értéke Nettó Ft Bruttó Ft"}]
[null,"Megemelt fedezet forrása","Forrás csoport","A forrás pontos megnevezése, projekt/pályázat jele",null,"A forrásból származó összeg (Ft)","Forrás csoport","A forrás pontos megnevezése, projekt/pályázat jele",null,"A forrásból származó összeg (Ft)"]
[null,null,null,null,null,null,null,null,null,null,null,null,{"$f":"IF(C23&D23&F23&G23&H23&J23=\"\",B22,IF(OR(AND(OR(C23=\"\",D23=\"\"),F23<>\"\"),AND(OR(G23=\"\",H23=\"\"),J23<>\"\")),$B$22&\" \"&\"Csoport? Megnevezés?\",\"Ok\"))","v":"Megemelt fedezet forrása"}]
[null,"Fedezetemelés összege (bruttó Ft)",{"$f":"F23+J23","v":0},null,null,null,null,null,null,null,null,null,{"$f":"IF(OR(C24=\"\",C24<=0),B24,\"Ok\")","v":"Fedezetemelés összege (bruttó Ft)"}]
[null,"A megemelt fedezet teljes összege (eredeti fedezet+ fedezetemelés bruttó Ft)",{"$f":"C18+C24","v":0},null,null,null,null,null,null,null,null,1,{"$f":"IF(OR(C25=\"\",C25<=0),B25,\"Ok\")","v":"A megemelt fedezet teljes összege (eredeti fedezet+ fedezetemelés bruttó Ft)"}]
[]
["Dátum: 20…...., év ……………………..…….hónap ……..nap",null,null,"Dátum: 20…...., év ……………………..…….hónap ……..nap",null,null,null,"Dátum: 20…...., év ……………………..…….hónap ……..nap"]
[]
[null,"………………………………………………………………..",null,null,"…………………………………………………………..",null,null,"………………………………………………………….."]
[null,"\nA pótlólagos fedezetet biztosító szervezet vezetőjének aláírása *",null,"\nA pótlólagos fedezetet biztosító szervezet pénzügyi ellenjegyzőjének aláírása *",null,null,null,"\nKancellári egyetértési jog gyakorlója (Külső/Belső Klinikai Tömb)"]
["* Minden esetben kötelező"]
[]
["Dátum: 20…...., év ……………………..…….hónap ……..nap",null,null,"Dátum: 20…...., év ……………………..…….hónap ……..nap",null,null,null,"Dátum: 20…...., év ……………………..…….hónap ……..nap"]
[null,"………………………………………………………………..",null,null,"…………………………………………………………..",null,null,"………………………………………………………….."]
[null,"\nRektor aláírása (kötelezettségvállaló, engedélyező)**",null,"\nKancellár aláírása (kötelezettségvállaló, engedélyező)**",null,null,null,"\nGazdasági Főigazgató aláírása (ellenjegyző**)"]
["** Kötelezettségvállalási Szabályzat szerint a megemelt, teljes fedezetre vonatkozóan"]
[]
["Sz","SZAKMAI MEGFELELŐSÉG IGAZOLÁSA - SZAKIGAZGATÓSÁG (Bruttó 1 millió Ft, vagy azt meghalató fedezetemelés esetén a nem közbeszerzéssel megvalósított beszerzések esetén)"]
["Sz-1","Szakterületi besorolás\n(X-el jelölve)","Vagyon- és Létesítmény -gazdálkodási Igazgatóság","Biztonságtechnikai  Igazgatóság","Informatikai Igazgatóság","Központi Könyvtár","Kommunikációs és Rendezvényszervezési Igazgatóság","Orvosszakmai, Finanszírozási és Minőségbiztosítási Főigazgatóság","Szolgáltatási Igazgatóság","Beruházási és Létesítmény-fenntartási Ig.","Egyéb:"]
[]
["Sz-2","Szakmai tartalom\n(megfelelés esetén X, ellenkező esetben rövid indoklás.)","Megfelel","Nem felel meg","Megjegyzés \n(kiemelt termék azonosítója/cikkszáma, keretmegállapodás azonosítója, nem megfelelőség esetén indoklás)"]
[]
[]
["Dátum: 20………..., év ……………………..…….hónap ……....nap"]
[null,null,null,"…………………………………………………………",null,null,"…………………………………………………………"]
[null,null,null,"Előadó",null,null,"Szakigazgatóság vezetője / Szakmai ellenjegyző"]
[]
["M","MINŐSÍTÉS - BESZERZÉSI IGAZGATÓSÁG"]
["M-1","Minősítés\n(X-el jelölve)","Egyszerű beszerzés","Külön szabályozott közbeszerzés","Közbeszerzés","Kbt. kivételi kör","459/2016. Korm.rend. szeinti kivétel (a….z)","A termékre/ szolgáltatásra már van érvényes szerződés"]
[null,null,null,null,null,null,null,"SAP szám:"]
["M-2","A beszerzés besorolása\n(X-el jelölve)","Árubeszerzés","Szolgáltatás megrendelése",null,"Építési beruházás","Szolg. koncesszió","Építési koncesszió","Tervpályázat"]
[]
[]
["Dátum: 20……..., év …………...hónap ….....…..nap"]
[]
[null,null,"……………………………………………………………………",null,"……..                              ……..","……………………………………………………………………"]
[null,null,"Beszerzéstervezési és Minősítési Osztály\n osztályvezető",null,null,"Beszerzésminősítési és Közbeszerzési Főosztály főosztályvezető",null,"…………………………………………………………."]
[null,null,null,null,"Beszerzés minősítője",null,null,"Beszerzési igazgató"]
["Minősítés helye"]

{"sheet":"BEF kitöltési útmutatója","index":7,"n_rows":27,"n_cols":1,"rows_kept":27,"cut":false,"hidden":false,"merged":[]}
["BESZERZÉSI ELJÁRÁS FEDEZETEMELÉS (BEF) kitöltési útmutatója"]
[]
["1.    „B” jelű rész rovatait a beszerzést kezdeményező szervezeti egység tölti ki az alábbiak szerint"]
[]
["B-1 rész és rovatai:"]
["· A BBEF-et az Iratkezelési Szabályzatnak megfelelően iktatni kell."]
["· Beszerzést igénylő szervezeti egység pontos (a Semmelweis Egyetem Szervezeti és Működési Rendje és organogramja szerinti) megnevezése."]
["· Szervezeti egység vezetője (kötelezettségvállaló), gazdasági vezető/pénzügyi ellenjegyző a Kötelezettségvállalási Szabályzat előírásának megfelelően. "]
["· Beszerzés ügyintézőjének neve, beosztása és elérhetősége értelemszerűen."]
["· A beszerzés tárgyának megnevezése az eredeti BML-el azonos módon."]
[]
["B-2 rész és rovatai:"]
["· A módosítás indoka"]
["· Az eredeti BML pénzügyi adatai értelem szerűen."]
[]
["B-3 rész és rovatai:"]
["· A módosítás indoka"]
["· Beszerzés többlet fedezetének forrásai csoportok szerint bontva, a pontos megnevezés feltüntetésével meghatározva. "]
[]
[]
["§ A hiánytalanul kitöltött, dátummal ellátott BEF-et, a módosított fedezetre vonatkozóan alkalmazott Kötelezettségvállalási Szabályzat szerinti kötelezettségvállaló és ellenjegyző írja alá."]
[]
["Sz-1. 2. rész és rovatai:"]
["· A nem közbeszerzési eljárás keretében lefolytatott beszerzés esetén nettó 1 millió forintot meghaladó fedezetemelés esetén a BEF-et el kell juttatni a beszerzés szakmai megfelelőségét igazoló, beszerzés tárgya szerint illetékes szakigazgatósághoz, a szakmai megfelelőség igazolás céljából."]
[]
[]
["Az „M” jelű rész rovatait a Beszerzési Igazgatóság a BML minősítési szabályainak alkalmazásával tölti ki."]